[Event "*** Titled Tuesday Blitz"]
[Site "Chess.com"]
[Date "2019.09.03"]
[Round "7"]
[White "becemix"]
[Black "Alexandercs432"]
[Result "1-0"]
[WhiteElo "2412"]
[BlackElo "2035"]
[TimeControl "180+2"]
[EndTime "16:34:39 PDT"]
[Termination "becemix won on time"]

1. e4 {[%clk 0:03:01.9]} 1... e5 {[%clk 0:03:00]} 2. Nf3 {[%clk 0:03:02.2]} 2...
Nf6 {[%clk 0:03:01.5]} 3. Nxe5 {[%clk 0:02:58]} 3... d6 {[%clk 0:03:02.6]} 4.
Nxf7 {[%clk 0:02:59.4]} 4... Kxf7 {[%clk 0:03:03.5]} 5. d4 {[%clk 0:02:59.4]}
5... c5 {[%clk 0:02:50]} 6. dxc5 {[%clk 0:02:59.1]} 6... Nc6 {[%clk 0:02:35.5]}
7. Bc4+ {[%clk 0:02:55.8]} 7... Be6 {[%clk 0:02:28.4]} 8. Bxe6+ {[%clk
0:02:56.6]} 8... Kxe6 {[%clk 0:02:29.3]} 9. cxd6 {[%clk 0:02:57.7]} 9... Qxd6
{[%clk 0:02:19.4]} 10. Qxd6+ {[%clk 0:02:57]} 10... Bxd6 {[%clk 0:02:19.8]} 11.
f3 {[%clk 0:02:46.6]} 11... Bc5 {[%clk 0:02:16.2]} 12. c3 {[%clk 0:02:46.1]}
12... Rhd8 {[%clk 0:02:11.8]} 13. Ke2 {[%clk 0:02:45.4]} 13... Rd7 {[%clk
0:02:10.5]} 14. Nd2 {[%clk 0:02:39.8]} 14... Rad8 {[%clk 0:02:06.2]} 15. Nb3
{[%clk 0:02:40.8]} 15... Bb6 {[%clk 0:02:05.2]} 16. Be3 {[%clk 0:02:41.8]} 16...
Bxe3 {[%clk 0:02:02.2]} 17. Kxe3 {[%clk 0:02:43.1]} 17... g5 {[%clk 0:01:54.6]}
18. Ke2 {[%clk 0:02:42.6]} 18... b6 {[%clk 0:01:46.1]} 19. Rhd1 {[%clk
0:02:42.5]} 19... Rxd1 {[%clk 0:01:41.1]} 20. Rxd1 {[%clk 0:02:44.4]} 20... Rxd1
{[%clk 0:01:41.1]} 21. Kxd1 {[%clk 0:02:46.3]} 21... h5 {[%clk 0:01:34.6]} 22.
Ke2 {[%clk 0:02:46.6]} 22... h4 {[%clk 0:01:35.4]} 23. Nd4+ {[%clk 0:02:42.3]}
23... Nxd4+ {[%clk 0:01:34.9]} 24. cxd4 {[%clk 0:02:42.8]} 24... Nh5 {[%clk
0:01:28.4]} 25. Ke3 {[%clk 0:02:38.3]} 25... Nf4 {[%clk 0:01:25.2]} 26. g3
{[%clk 0:02:38.2]} 26... hxg3 {[%clk 0:01:23]} 27. hxg3 {[%clk 0:02:40.1]} 27...
Nh5 {[%clk 0:01:20.4]} 28. Kf2 {[%clk 0:02:41.3]} 28... Nf6 {[%clk 0:01:08.3]}
29. g4 {[%clk 0:02:38.2]} 29... Nd7 {[%clk 0:01:01.2]} 30. Ke3 {[%clk
0:02:38.8]} 30... Nb8 {[%clk 0:01:00.8]} 31. f4 {[%clk 0:02:38.2]} 31... gxf4+
{[%clk 0:01:01]} 32. Kxf4 {[%clk 0:02:40.1]} 32... Na6 {[%clk 0:00:52.7]} 33. a3
{[%clk 0:02:35.7]} 33... Nc7 {[%clk 0:00:53]} 34. g5 {[%clk 0:02:29.7]} 34...
Nb5 {[%clk 0:00:45.6]} 35. d5+ {[%clk 0:02:29.9]} 35... Kf7 {[%clk 0:00:20.5]}
36. e5 {[%clk 0:02:29.7]} 36... Nc7 {[%clk 0:00:16.9]} 37. Ke4 {[%clk
0:02:26.1]} 37... Kg6 {[%clk 0:00:16.3]} 38. e6 {[%clk 0:02:27]} 38... Kxg5
{[%clk 0:00:14.7]} 39. Ke5 {[%clk 0:02:28.4]} 39... Kg6 {[%clk 0:00:11.9]} 40.
d6 {[%clk 0:02:27.9]} 40... Ne8 {[%clk 0:00:04.1]} 41. d7 {[%clk 0:02:29.3]} 1-0

[Event "*** Titled Tuesday Blitz"]
[Site "Chess.com"]
[Date "2019.09.03"]
[Round "7"]
[White "Mikhail_Golubev"]
[Black "bascheyaro"]
[Result "0-1"]
[WhiteElo "2427"]
[BlackElo "2691"]
[TimeControl "180+2"]
[EndTime "16:34:50 PDT"]
[Termination "bascheyaro won on time"]

1. e4 {[%clk 0:03:01.9]} 1... e6 {[%clk 0:03:00.6]} 2. d4 {[%clk 0:03:02.3]}
2... d5 {[%clk 0:03:02.5]} 3. Nc3 {[%clk 0:03:03.5]} 3... Bb4 {[%clk 0:03:03]}
4. e5 {[%clk 0:03:03.7]} 4... Ne7 {[%clk 0:03:04.2]} 5. a3 {[%clk 0:03:04.5]}
5... Bxc3+ {[%clk 0:03:05.6]} 6. bxc3 {[%clk 0:03:05.8]} 6... b6 {[%clk
0:03:07.5]} 7. Qg4 {[%clk 0:03:02.8]} 7... Kf8 {[%clk 0:03:08.9]} 8. Bd3 {[%clk
0:02:57.9]} 8... Ba6 {[%clk 0:03:09.9]} 9. Nf3 {[%clk 0:02:59]} 9... Bxd3 {[%clk
0:03:10.4]} 10. cxd3 {[%clk 0:03:00.1]} 10... c5 {[%clk 0:03:11.2]} 11. O-O
{[%clk 0:02:58.7]} 11... Nbc6 {[%clk 0:03:12.2]} 12. a4 {[%clk 0:02:51.2]} 12...
cxd4 {[%clk 0:03:11.3]} 13. Ba3 {[%clk 0:02:42.9]} 13... Kg8 {[%clk 0:03:11.3]}
14. Nxd4 {[%clk 0:02:34.7]} 14... Nxd4 {[%clk 0:03:11.7]} 15. Qxd4 {[%clk
0:02:33.6]} 15... Nc6 {[%clk 0:03:07.7]} 16. Qf4 {[%clk 0:02:32.2]} 16... h6
{[%clk 0:03:06.6]} 17. c4 {[%clk 0:02:23.3]} 17... dxc4 {[%clk 0:03:01.1]} 18.
dxc4 {[%clk 0:02:17.7]} 18... Qd4 {[%clk 0:03:02]} 19. Qf3 {[%clk 0:02:14.7]}
19... Rc8 {[%clk 0:03:02.2]} 20. Rad1 {[%clk 0:02:10.4]} 20... Qxe5 {[%clk
0:02:43.9]} 21. Rfe1 {[%clk 0:02:08.4]} 21... Qf6 {[%clk 0:02:44.2]} 22. Qe4
{[%clk 0:01:54.8]} 22... Na5 {[%clk 0:02:42]} 23. Rd7 {[%clk 0:01:49]} 23...
Rxc4 {[%clk 0:02:30.3]} 24. Qb1 {[%clk 0:01:44.2]} 24... Rc8 {[%clk 0:02:23.7]}
25. Red1 {[%clk 0:01:28.4]} 25... Nc4 {[%clk 0:02:20.7]} 26. Be7 {[%clk
0:01:26.5]} 26... Qf5 {[%clk 0:02:18.7]} 27. Qxf5 {[%clk 0:00:53.3]} 27... exf5
{[%clk 0:02:20.6]} 28. Rxa7 {[%clk 0:00:53.6]} 28... Kh7 {[%clk 0:02:19.8]} 29.
f4 {[%clk 0:00:25.1]} 29... Ra8 {[%clk 0:02:14.1]} 30. Rdd7 {[%clk 0:00:14.2]}
30... Rhc8 {[%clk 0:02:13.7]} 31. Bb4 {[%clk 0:00:12.1]} 31... Rxa7 {[%clk
0:02:13.7]} 32. Rxa7 {[%clk 0:00:12.2]} 32... Kg6 {[%clk 0:02:15]} 33. Kf2
{[%clk 0:00:12.6]} 33... Nb2 {[%clk 0:02:13.5]} 34. Bd6 {[%clk 0:00:08.1]} 34...
Rc4 {[%clk 0:02:06.9]} 35. Be5 {[%clk 0:00:02.5]} 35... Rxa4 {[%clk 0:01:59.8]}
0-1

[Event "*** Titled Tuesday Blitz"]
[Site "Chess.com"]
[Date "2019.09.03"]
[Round "7"]
[White "ElGasanov"]
[Black "NormWeinstein"]
[Result "1-0"]
[WhiteElo "2684"]
[BlackElo "2415"]
[TimeControl "180+2"]
[EndTime "16:34:57 PDT"]
[Termination "ElGasanov won by resignation"]

1. e4 {[%clk 0:03:01.9]} 1... c5 {[%clk 0:02:57.1]} 2. Nc3 {[%clk 0:03:02]} 2...
e6 {[%clk 0:02:56.9]} 3. g3 {[%clk 0:03:02.7]} 3... d5 {[%clk 0:02:55.6]} 4. Bg2
{[%clk 0:03:03.6]} 4... dxe4 {[%clk 0:02:55.8]} 5. Nxe4 {[%clk 0:03:04.2]} 5...
Be7 {[%clk 0:02:56.1]} 6. Ne2 {[%clk 0:02:54.8]} 6... Nf6 {[%clk 0:02:56.6]} 7.
d4 {[%clk 0:02:56.3]} 7... cxd4 {[%clk 0:02:53.8]} 8. Qxd4 {[%clk 0:02:53.1]}
8... O-O {[%clk 0:02:52]} 9. O-O {[%clk 0:02:51.9]} 9... Nc6 {[%clk 0:02:51.2]}
10. Qe3 {[%clk 0:02:51.1]} 10... Qc7 {[%clk 0:02:44]} 11. N2c3 {[%clk
0:02:32.6]} 11... a6 {[%clk 0:02:42.9]} 12. Rd1 {[%clk 0:02:31.8]} 12... b5
{[%clk 0:02:31.3]} 13. Nxf6+ {[%clk 0:02:32.5]} 13... Bxf6 {[%clk 0:02:31.4]}
14. Qc5 {[%clk 0:02:33.7]} 14... Bb7 {[%clk 0:02:30.1]} 15. Bf4 {[%clk
0:02:33.6]} 15... Qc8 {[%clk 0:02:25.4]} 16. Ne4 {[%clk 0:02:34.4]} 16... Be7
{[%clk 0:02:26.1]} 17. Bd6 {[%clk 0:02:30.8]} 17... Re8 {[%clk 0:01:41]} 18. c3
{[%clk 0:02:19.7]} 18... Rb8 {[%clk 0:01:27]} 19. Qh5 {[%clk 0:02:04.6]} 19...
Ra8 {[%clk 0:01:15.5]} 20. Bxe7 {[%clk 0:02:01.4]} 20... Rxe7 {[%clk 0:01:16]}
21. Nd6 {[%clk 0:02:02.7]} 21... Qc7 {[%clk 0:01:15.7]} 22. Nxb7 {[%clk
0:01:37.7]} 22... Qxb7 {[%clk 0:01:15.7]} 23. Rd6 {[%clk 0:01:39.4]} 23... Rc8
{[%clk 0:01:13.7]} 24. Rad1 {[%clk 0:01:37.2]} 24... g6 {[%clk 0:00:37.7]} 25.
Qc5 {[%clk 0:01:34.8]} 25... Rec7 {[%clk 0:00:26.2]} 26. h4 {[%clk 0:01:15.5]}
26... h5 {[%clk 0:00:25.2]} 27. Bxc6 {[%clk 0:00:58.2]} 27... Rxc6 {[%clk
0:00:25.2]} 28. Rxc6 {[%clk 0:01:00]} 28... Rxc6 {[%clk 0:00:19.9]} 29. Rd8+
{[%clk 0:01:01.1]} 29... Kh7 {[%clk 0:00:19.3]} 30. Qf8 {[%clk 0:01:01.9]} 1-0

[Event "*** Titled Tuesday Blitz"]
[Site "Chess.com"]
[Date "2019.09.03"]
[Round "7"]
[White "Bishops83"]
[Black "r31415"]
[Result "0-1"]
[WhiteElo "2211"]
[BlackElo "2365"]
[TimeControl "180+2"]
[EndTime "16:35:01 PDT"]
[Termination "r31415 won by resignation"]

1. e4 {[%clk 0:03:01.9]} 1... e5 {[%clk 0:02:59.5]} 2. Nf3 {[%clk 0:03:01.5]}
2... Nc6 {[%clk 0:03:01]} 3. Bb5 {[%clk 0:03:01.9]} 3... Nf6 {[%clk 0:03:02.5]}
4. O-O {[%clk 0:02:58]} 4... Nxe4 {[%clk 0:03:03.5]} 5. d4 {[%clk 0:02:55.3]}
5... Nd6 {[%clk 0:03:04.8]} 6. dxe5 {[%clk 0:02:53.2]} 6... Nxb5 {[%clk
0:03:05.9]} 7. a4 {[%clk 0:02:52.5]} 7... Nbd4 {[%clk 0:03:07]} 8. Nxd4 {[%clk
0:02:48.9]} 8... Nxd4 {[%clk 0:03:08.9]} 9. Qxd4 {[%clk 0:02:49.9]} 9... d5
{[%clk 0:03:10.8]} 10. exd6 {[%clk 0:02:46.2]} 10... Qxd6 {[%clk 0:03:11.3]} 11.
Qe4+ {[%clk 0:02:16.7]} 11... Qe6 {[%clk 0:03:12.3]} 12. Qd4 {[%clk 0:02:16.8]}
12... Qd6 {[%clk 0:03:13.8]} 13. Qe4+ {[%clk 0:02:17.1]} 13... Qe6 {[%clk
0:03:15.3]} 14. Qd4 {[%clk 0:02:18]} 14... Qb6 {[%clk 0:03:16.9]} 15. Qc3 {[%clk
0:01:16.6]} 15... Qc5 {[%clk 0:02:54.8]} 16. Qg3 {[%clk 0:01:08]} 16... Qxc2
{[%clk 0:02:43]} 17. Nc3 {[%clk 0:01:07.9]} 17... c6 {[%clk 0:02:22.4]} 18. Re1+
{[%clk 0:00:56.1]} 18... Be6 {[%clk 0:02:23]} 19. Qc7 {[%clk 0:00:56.7]} 19...
Qb3 {[%clk 0:02:13]} 20. Bg5 {[%clk 0:00:22.6]} 20... Qb6 {[%clk 0:02:06.4]} 21.
Qe5 {[%clk 0:00:23]} 21... Bc5 {[%clk 0:01:54.3]} 22. Qg3 {[%clk 0:00:19.7]}
22... O-O {[%clk 0:01:40.6]} 23. Bh6 {[%clk 0:00:20.2]} 23... Bd4 {[%clk
0:01:40.4]} 24. Rad1 {[%clk 0:00:19]} 24... Bxf2+ {[%clk 0:01:37.4]} 25. Qxf2
{[%clk 0:00:17.7]} 25... Qxf2+ {[%clk 0:01:39.3]} 26. Kxf2 {[%clk 0:00:19]}
26... gxh6 {[%clk 0:01:41.2]} 27. Ne4 {[%clk 0:00:19.1]} 27... Rad8 {[%clk
0:01:37.1]} 28. Nc5 {[%clk 0:00:19.5]} 28... Bc8 {[%clk 0:01:19.3]} 29. a5
{[%clk 0:00:17.9]} 29... b6 {[%clk 0:01:18.9]} 30. axb6 {[%clk 0:00:17]} 30...
axb6 {[%clk 0:01:20.8]} 31. Ne4 {[%clk 0:00:18.1]} 31... Rxd1 {[%clk 0:01:19.5]}
32. Rxd1 {[%clk 0:00:18.4]} 32... Kg7 {[%clk 0:01:21.4]} 33. Rd6 {[%clk
0:00:17.8]} 33... Re8 {[%clk 0:01:18]} 34. Rxc6 {[%clk 0:00:13]} 34... Bb7
{[%clk 0:01:18.8]} 0-1

[Event "*** Titled Tuesday Blitz"]
[Site "Chess.com"]
[Date "2019.09.03"]
[Round "7"]
[White "VladimirBelous"]
[Black "GadimbayliA"]
[Result "0-1"]
[WhiteElo "2718"]
[BlackElo "2877"]
[TimeControl "180+2"]
[EndTime "16:35:04 PDT"]
[Termination "GadimbayliA won by resignation"]

1. c4 {[%clk 0:03:01.9]} 1... e5 {[%clk 0:02:44.9]} 2. g3 {[%clk 0:03:02.4]}
2... Nf6 {[%clk 0:02:44.5]} 3. Bg2 {[%clk 0:03:04]} 3... d5 {[%clk 0:02:45.3]}
4. cxd5 {[%clk 0:03:05.9]} 4... Nxd5 {[%clk 0:02:46.8]} 5. Nf3 {[%clk
0:03:04.8]} 5... Nc6 {[%clk 0:02:46.7]} 6. O-O {[%clk 0:03:06.4]} 6... Be7
{[%clk 0:02:46.3]} 7. Nc3 {[%clk 0:03:04.5]} 7... Nb6 {[%clk 0:02:47.3]} 8. a3
{[%clk 0:03:05.2]} 8... O-O {[%clk 0:02:46.6]} 9. b4 {[%clk 0:03:05.6]} 9... Be6
{[%clk 0:02:47.8]} 10. d3 {[%clk 0:03:01.7]} 10... a5 {[%clk 0:02:48.8]} 11. b5
{[%clk 0:03:02.8]} 11... Nd4 {[%clk 0:02:50]} 12. Nd2 {[%clk 0:03:03.9]} 12...
a4 {[%clk 0:02:49.5]} 13. Bxb7 {[%clk 0:03:01.9]} 13... Ra5 {[%clk 0:02:50.3]}
14. Rb1 {[%clk 0:02:47.2]} 14... f5 {[%clk 0:02:38.8]} 15. e3 {[%clk 0:02:27.6]}
15... Nb3 {[%clk 0:02:39.4]} 16. Nxb3 {[%clk 0:02:28.7]} 16... axb3 {[%clk
0:02:34.7]} 17. Rxb3 {[%clk 0:02:06.2]} 17... Bxb3 {[%clk 0:02:34.3]} 18. Qxb3+
{[%clk 0:02:08.1]} 18... Kh8 {[%clk 0:02:35.8]} 19. Nd5 {[%clk 0:02:09.7]} 19...
Nxd5 {[%clk 0:01:49.8]} 20. Bxd5 {[%clk 0:02:11.6]} 20... Bd6 {[%clk 0:01:51]}
21. a4 {[%clk 0:02:07.2]} 21... f4 {[%clk 0:01:52.1]} 22. Bd2 {[%clk 0:02:03.1]}
22... Ra7 {[%clk 0:01:52.1]} 23. a5 {[%clk 0:01:54.6]} 23... Qd7 {[%clk
0:01:29]} 24. Kg2 {[%clk 0:01:20.8]} 24... Qf5 {[%clk 0:01:23.6]} 25. Bf3 {[%clk
0:00:50.4]} 25... h5 {[%clk 0:00:57.2]} 26. exf4 {[%clk 0:00:45.4]} 26... exf4
{[%clk 0:00:55.8]} 27. Qd5 {[%clk 0:00:47]} 27... h4 {[%clk 0:00:48.7]} 28. g4
{[%clk 0:00:40.6]} 28... Qxd5 {[%clk 0:00:36.4]} 29. Bxd5 {[%clk 0:00:42.5]}
29... f3+ {[%clk 0:00:38.3]} 30. Bxf3 {[%clk 0:00:42.3]} 30... h3+ {[%clk
0:00:39.2]} 31. Kxh3 {[%clk 0:00:40.7]} 31... Rxf3+ {[%clk 0:00:41.1]} 32. Kg2
{[%clk 0:00:42.6]} 32... Rxd3 {[%clk 0:00:41.2]} 0-1

[Event "*** Titled Tuesday Blitz"]
[Site "Chess.com"]
[Date "2019.09.03"]
[Round "7"]
[White "tteshan"]
[Black "PchelkinVK"]
[Result "1-0"]
[WhiteElo "2219"]
[BlackElo "2478"]
[TimeControl "180+2"]
[EndTime "16:35:12 PDT"]
[Termination "tteshan won on time"]

1. d4 {[%clk 0:03:01.9]} 1... e5 {[%clk 0:02:54.6]} 2. dxe5 {[%clk 0:03:02.3]}
2... d6 {[%clk 0:02:55.9]} 3. Nf3 {[%clk 0:03:01.8]} 3... Nc6 {[%clk 0:02:56.6]}
4. e4 {[%clk 0:02:55.5]} 4... Bg4 {[%clk 0:02:55.4]} 5. Bb5 {[%clk 0:02:54.6]}
5... dxe5 {[%clk 0:02:56.4]} 6. Qxd8+ {[%clk 0:02:46.2]} 6... Rxd8 {[%clk
0:02:58.3]} 7. h3 {[%clk 0:02:46.3]} 7... Bxf3 {[%clk 0:02:58.3]} 8. Bxc6+
{[%clk 0:02:47.1]} 8... bxc6 {[%clk 0:02:58.4]} 9. gxf3 {[%clk 0:02:48.6]} 9...
Bc5 {[%clk 0:02:53.3]} 10. Nd2 {[%clk 0:02:47.8]} 10... Ne7 {[%clk 0:02:52.5]}
11. Nb3 {[%clk 0:02:47.9]} 11... Bb6 {[%clk 0:02:53.9]} 12. a4 {[%clk
0:02:44.6]} 12... a6 {[%clk 0:02:16.9]} 13. Ke2 {[%clk 0:02:41.3]} 13... Ng6
{[%clk 0:02:14.9]} 14. Be3 {[%clk 0:02:41.8]} 14... a5 {[%clk 0:01:52.2]} 15.
Nd2 {[%clk 0:02:24]} 15... Ke7 {[%clk 0:01:30.1]} 16. Nc4 {[%clk 0:02:22.6]}
16... Ke6 {[%clk 0:01:25]} 17. Ra3 {[%clk 0:01:35.8]} 17... Nf4+ {[%clk
0:00:46]} 18. Bxf4 {[%clk 0:01:33.9]} 18... exf4 {[%clk 0:00:47.9]} 19. Rc3
{[%clk 0:01:16.9]} 19... c5 {[%clk 0:00:21.9]} 20. Rb3 {[%clk 0:01:06.9]} 20...
Rb8 {[%clk 0:00:15.5]} 21. Rd1 {[%clk 0:00:59.8]} 21... h5 {[%clk 0:00:16]} 22.
Rd5 {[%clk 0:00:58.5]} 22... Rh6 {[%clk 0:00:11.4]} 23. Nxa5 {[%clk 0:00:55.6]}
23... Rg6 {[%clk 0:00:08.9]} 24. Nc6 {[%clk 0:00:53.8]} 24... Ra8 {[%clk
0:00:08.1]} 25. a5 {[%clk 0:00:54.2]} 25... Bxa5 {[%clk 0:00:03.4]} 26. Ra3
{[%clk 0:00:54.5]} 1-0

[Event "*** Titled Tuesday Blitz"]
[Site "Chess.com"]
[Date "2019.09.03"]
[Round "7"]
[White "daro94"]
[Black "wonderfultime"]
[Result "1-0"]
[WhiteElo "2900"]
[BlackElo "2944"]
[TimeControl "180+2"]
[EndTime "16:35:38 PDT"]
[Termination "daro94 won by resignation"]

1. e4 {[%clk 0:03:01.1]} 1... c5 {[%clk 0:02:57.3]} 2. Nf3 {[%clk 0:03:02]} 2...
Nf6 {[%clk 0:02:57.6]} 3. e5 {[%clk 0:03:02.5]} 3... Nd5 {[%clk 0:02:58.9]} 4.
Nc3 {[%clk 0:03:04]} 4... e6 {[%clk 0:03:00.5]} 5. Ne4 {[%clk 0:03:00.2]} 5...
f5 {[%clk 0:03:01.3]} 6. Nc3 {[%clk 0:02:48.4]} 6... Ne7 {[%clk 0:03:02.2]} 7.
d4 {[%clk 0:02:27.4]} 7... cxd4 {[%clk 0:02:49.8]} 8. Nxd4 {[%clk 0:02:28.2]}
8... a6 {[%clk 0:02:51.3]} 9. g3 {[%clk 0:02:19.5]} 9... Nbc6 {[%clk 0:02:51.2]}
10. Nxc6 {[%clk 0:02:18.8]} 10... Nxc6 {[%clk 0:02:52]} 11. Bf4 {[%clk
0:02:06.4]} 11... Qb6 {[%clk 0:02:24.1]} 12. Qd2 {[%clk 0:01:44.4]} 12... Qxb2
{[%clk 0:02:11.5]} 13. Rb1 {[%clk 0:01:45.5]} 13... Qa3 {[%clk 0:02:12.6]} 14.
Bg2 {[%clk 0:01:46.7]} 14... Bb4 {[%clk 0:01:32.4]} 15. Rb3 {[%clk 0:01:47]}
15... Qa5 {[%clk 0:01:33.9]} 16. O-O {[%clk 0:01:43.3]} 16... O-O {[%clk
0:01:34.7]} 17. Rfb1 {[%clk 0:01:26.7]} 17... Be7 {[%clk 0:01:31.7]} 18. a4
{[%clk 0:00:55.8]} 18... Qc7 {[%clk 0:01:20.9]} 19. h4 {[%clk 0:00:49.1]} 19...
Bc5 {[%clk 0:01:10.8]} 20. Nd5 {[%clk 0:00:42.1]} 20... Qd8 {[%clk 0:01:04.8]}
21. Nb6 {[%clk 0:00:41.8]} 21... Rb8 {[%clk 0:00:56]} 22. a5 {[%clk 0:00:34.9]}
22... Kh8 {[%clk 0:00:46.2]} 23. Rd3 {[%clk 0:00:35.6]} 23... Rf7 {[%clk
0:00:40.5]} 24. Nc4 {[%clk 0:00:28.5]} 24... Qc7 {[%clk 0:00:37.1]} 25. Nd6
{[%clk 0:00:26.4]} 25... Bxd6 {[%clk 0:00:38]} 26. exd6 {[%clk 0:00:26.1]} 26...
Qxa5 {[%clk 0:00:26]} 27. Bxc6 {[%clk 0:00:26.9]} 27... Qa2 {[%clk 0:00:20.6]}
28. Qc1 {[%clk 0:00:19.4]} 28... e5 {[%clk 0:00:08.4]} 29. Bd5 {[%clk
0:00:19.6]} 1-0

[Event "*** Titled Tuesday Blitz"]
[Site "Chess.com"]
[Date "2019.09.03"]
[Round "7"]
[White "YQPerez"]
[Black "Jospem"]
[Result "1-0"]
[WhiteElo "2795"]
[BlackElo "2922"]
[TimeControl "180+2"]
[EndTime "16:35:38 PDT"]
[Termination "YQPerez won by checkmate"]

1. e4 {[%clk 0:03:01.9]} 1... c5 {[%clk 0:03:01]} 2. Nc3 {[%clk 0:03:01]} 2...
d6 {[%clk 0:03:02.6]} 3. Bb5+ {[%clk 0:03:00.6]} 3... Nd7 {[%clk 0:03:02.6]} 4.
f4 {[%clk 0:02:57.2]} 4... e6 {[%clk 0:03:03]} 5. Nf3 {[%clk 0:02:56.9]} 5... a6
{[%clk 0:03:04.5]} 6. Bxd7+ {[%clk 0:02:56.3]} 6... Bxd7 {[%clk 0:03:05.5]} 7.
d3 {[%clk 0:02:56.1]} 7... Bc6 {[%clk 0:03:04.4]} 8. O-O {[%clk 0:02:56]} 8...
Nf6 {[%clk 0:03:03.9]} 9. Qe1 {[%clk 0:02:52.2]} 9... Be7 {[%clk 0:03:03.8]} 10.
e5 {[%clk 0:02:47.3]} 10... Nd5 {[%clk 0:02:39.6]} 11. Ne4 {[%clk 0:02:44.3]}
11... O-O {[%clk 0:02:36.1]} 12. Qg3 {[%clk 0:02:45]} 12... f5 {[%clk
0:02:17.9]} 13. exf6 {[%clk 0:02:40.5]} 13... Nxf6 {[%clk 0:02:18.2]} 14. Neg5
{[%clk 0:02:39]} 14... Qc8 {[%clk 0:02:07.7]} 15. Qh3 {[%clk 0:02:35.8]} 15...
Bd7 {[%clk 0:01:55.2]} 16. Ne5 {[%clk 0:02:33.9]} 16... dxe5 {[%clk 0:01:48]}
17. fxe5 {[%clk 0:02:35.8]} 17... h6 {[%clk 0:01:49.6]} 18. exf6 {[%clk
0:02:33.2]} 18... Bxf6 {[%clk 0:01:50.7]} 19. Ne4 {[%clk 0:02:31.6]} 19... Bd4+
{[%clk 0:01:47.1]} 20. Be3 {[%clk 0:02:32.7]} 20... Bxb2 {[%clk 0:01:31.9]} 21.
Rxf8+ {[%clk 0:02:29.1]} 21... Qxf8 {[%clk 0:01:32.8]} 22. Rf1 {[%clk
0:02:29.3]} 22... Qe7 {[%clk 0:01:25.7]} 23. Bxc5 {[%clk 0:02:27.2]} 23... Qe8
{[%clk 0:01:25.3]} 24. Rf8+ {[%clk 0:02:20.3]} 24... Qxf8 {[%clk 0:01:26]} 25.
Bxf8 {[%clk 0:02:20.9]} 25... Bd4+ {[%clk 0:01:25.9]} 26. Kf1 {[%clk 0:02:15.2]}
26... Rxf8+ {[%clk 0:01:27.3]} 27. Ke2 {[%clk 0:02:08.4]} 27... Rf5 {[%clk
0:01:24.9]} 28. Qh4 {[%clk 0:02:02.2]} 28... Rf7 {[%clk 0:01:05.4]} 29. Nd6
{[%clk 0:01:43]} 29... Rf2+ {[%clk 0:00:57.5]} 30. Ke1 {[%clk 0:01:43.2]} 30...
Bb6 {[%clk 0:00:57.4]} 31. Qb4 {[%clk 0:01:42.3]} 31... Be3 {[%clk 0:00:42.7]}
32. Qxb7 {[%clk 0:01:38]} 32... Ba4 {[%clk 0:00:43.5]} 33. Qc8+ {[%clk
0:01:24.2]} 33... Kh7 {[%clk 0:00:30.1]} 34. Qxe6 {[%clk 0:01:22.6]} 34... Rxc2
{[%clk 0:00:05.4]} 35. Qxe3 {[%clk 0:01:21.1]} 35... Bc6 {[%clk 0:00:06.9]} 36.
Nf5 {[%clk 0:01:09]} 36... Rxg2 {[%clk 0:00:06.5]} 37. Ne7 {[%clk 0:01:07]}
37... Bb7 {[%clk 0:00:05.3]} 38. Qe6 {[%clk 0:01:05.8]} 38... Rg5 {[%clk
0:00:05.3]} 39. Qg8# {[%clk 0:01:05.5]} 1-0

[Event "*** Titled Tuesday Blitz"]
[Site "Chess.com"]
[Date "2019.09.03"]
[Round "7"]
[White "JussupowFan"]
[Black "minnesotachessmaster"]
[Result "1-0"]
[WhiteElo "2194"]
[BlackElo "1945"]
[TimeControl "180+2"]
[EndTime "16:35:40 PDT"]
[Termination "JussupowFan won by resignation"]

1. e4 {[%clk 0:03:01.9]} 1... c5 {[%clk 0:03:00.1]} 2. Nf3 {[%clk 0:03:00.7]}
2... Nc6 {[%clk 0:02:59.3]} 3. d4 {[%clk 0:03:01.9]} 3... cxd4 {[%clk
0:02:59.1]} 4. Nxd4 {[%clk 0:03:03.8]} 4... Nf6 {[%clk 0:02:58.1]} 5. Nc3 {[%clk
0:03:04]} 5... e5 {[%clk 0:02:58.3]} 6. Ndb5 {[%clk 0:03:04.4]} 6... d6 {[%clk
0:02:56.1]} 7. Bg5 {[%clk 0:03:04.1]} 7... a6 {[%clk 0:02:56.6]} 8. Na3 {[%clk
0:03:02.7]} 8... Be7 {[%clk 0:02:52.8]} 9. Bxf6 {[%clk 0:03:02.9]} 9... Bxf6
{[%clk 0:02:53.2]} 10. Nd5 {[%clk 0:03:04]} 10... Bg5 {[%clk 0:02:52.8]} 11. c3
{[%clk 0:02:48.1]} 11... O-O {[%clk 0:02:52.9]} 12. Nc2 {[%clk 0:02:49.2]} 12...
Be6 {[%clk 0:02:45.9]} 13. Nce3 {[%clk 0:02:49.1]} 13... Ne7 {[%clk 0:02:19]}
14. Be2 {[%clk 0:01:48.3]} 14... Bxe3 {[%clk 0:02:07]} 15. Nxe3 {[%clk 0:01:47]}
15... d5 {[%clk 0:02:07]} 16. exd5 {[%clk 0:01:47.2]} 16... Nxd5 {[%clk
0:02:07]} 17. Nxd5 {[%clk 0:01:46.2]} 17... Qxd5 {[%clk 0:02:05.8]} 18. Bf3
{[%clk 0:01:48.1]} 18... e4 {[%clk 0:02:03.9]} 19. Qxd5 {[%clk 0:01:46.2]} 19...
Bxd5 {[%clk 0:02:04.2]} 20. Be2 {[%clk 0:01:47.6]} 20... f5 {[%clk 0:01:58.1]}
21. O-O-O {[%clk 0:01:47.8]} 21... Bc6 {[%clk 0:01:57.7]} 22. c4 {[%clk
0:01:46.1]} 22... Rfd8 {[%clk 0:01:52.5]} 23. b4 {[%clk 0:01:46.5]} 23... Kf8
{[%clk 0:01:47.8]} 24. Kb2 {[%clk 0:01:44.2]} 24... Ke7 {[%clk 0:01:47.5]} 25.
Kc3 {[%clk 0:01:44.7]} 25... Kf6 {[%clk 0:01:32]} 26. Kb3 {[%clk 0:01:31.1]}
26... Ke5 {[%clk 0:01:21.1]} 27. a4 {[%clk 0:01:31.4]} 27... b6 {[%clk
0:01:13.7]} 28. g3 {[%clk 0:01:22.9]} 28... Be8 {[%clk 0:01:06.9]} 29. h4 {[%clk
0:01:10.9]} 29... Bf7 {[%clk 0:01:04.8]} 30. Kc3 {[%clk 0:01:03.8]} 30... Rac8
{[%clk 0:01:04.1]} 31. Rxd8 {[%clk 0:00:56.5]} 31... Rxd8 {[%clk 0:01:04.6]} 32.
Rd1 {[%clk 0:00:58.3]} 32... Rc8 {[%clk 0:01:01.9]} 33. Rd7 {[%clk 0:00:57.3]}
33... Be6 {[%clk 0:00:50]} 34. Rb7 {[%clk 0:00:56.7]} 34... Rc6 {[%clk
0:00:34.4]} 35. b5 {[%clk 0:00:53.2]} 35... axb5 {[%clk 0:00:34.1]} 36. axb5
{[%clk 0:00:55.1]} 36... Rd6 {[%clk 0:00:34]} 37. Rxg7 {[%clk 0:00:55.8]} 37...
Rd7 {[%clk 0:00:26.9]} 38. Rxd7 {[%clk 0:00:55.4]} 38... Bxd7 {[%clk 0:00:27.3]}
39. Bh5 {[%clk 0:00:51.5]} 39... f4 {[%clk 0:00:21.9]} 40. gxf4+ {[%clk
0:00:53.4]} 40... Kxf4 {[%clk 0:00:22.5]} 41. Kd4 {[%clk 0:00:55.3]} 1-0